[Event "MCCT Oslo Esports Cup 2022"]
[Site "Oslo"]
[Date "2022.04.20"]
[Round "2.3"]
[White "Duda, Jan-Krzysztof"]
[Black "Giri, Anish"]
[Result "1/2-1/2"]
[ECO "D85"]
[WhiteElo "2750"]
[BlackElo "2773"]
[Annotator "TA"]
[PlyCount "80"]
[EventDate "2022.04.14"]
[EventType "tourn"]
[EventCountry "NOR"]
[SourceTitle "playchess.com"]
[Source "ChessBase"]
[SourceQuality "1"]
[TimeControl "1500+10"]

{[%evp 19,80,0,3,0,0,0,0,0,0,0,0,0,0,0,0,0,0,0,10,-6,10,-10,-6,-13,-13,-54,-54,-46,-46,-65,-67,-61,-39,-39,-37,-36,-43,-38,0,0,0,-20,0,0,0,-18,0,0,0,0,0,0,0,-23,-12,-17,-20,-20,0,0,0,-20,0]} 1. d4 {[%emt 0:10:00]} Nf6 {[%emt 0:10:00]} 2. Nf3 {[%emt 0:00:01]} g6 {[%emt 0:00:01]} 3. c4 {[%emt 0:00:01]} Bg7 {[%emt 0:00:02]} 4. Nc3 {[%emt 0:00:01]} d5 {[%emt 0:00:01]} 5. cxd5 {[%emt 0:00:01]} Nxd5 {[%emt 0:00:01]} 6. e4 {[%emt 0:00:00]} Nxc3 {[%emt 0:00:01]} 7. bxc3 {[%emt 0:00:00]} c5 {[%emt 0:00:01]} 8. Bb5+ {[%emt 0:00:01]} Nc6 {[%emt 0:00:02]} 9. O-O {[%emt 0:00:03]} O-O {[%emt 0:00:04]} 10. Bxc6 {[%emt 0:00:02]} bxc6 {[%emt 0:00:00]} 11. Qc2 $1 {[%emt 0:00:01][%mdl 4] outshines the older 11.Ba3. D85: Exchange Grünfeld: Unusual White 7th moves and lines with 7 Nf3.} cxd4 {[%emt 0:00:06]} 12. cxd4 {[%emt 0:00:02]} Bg4 {[%emt 0:00:01] aiming for ...Bxf3.} 13. Ne5 {[%emt 0:00:06]} Qxd4 {[%emt 0:00:02]} 14. Bb2 {[%emt 0:00:01][%cal Bc1b2,Bb2e5,Be5c3][%mdl 32]} Qb6 {[%emt 0:00:03]} 15. Rab1 {[%emt 0:00:03]} Bxe5 {[%emt 0:00:09]} 16. Bxe5 {[%emt 0:00:00]} Qa5 {[%emt 0:00:02]} 17. Bc3 {[%emt 0:00:08]} Qc5 {[%emt 0:00:36]} 18. Qb2 {[%emt 0:00:21] [#]} Qc4 $146 {[%emt 0:00:23]} ({Predecessor:} 18... Qd6 19. Be5 Qd3 20. Bf4 f6 21. f3 Be6 22. Qb7 Kf7 23. Rfd1 Qc4 24. Bd6 Rfe8 25. Bxe7 Rab8 26. Qxa7 Ra8 27. Qb7 Rab8 28. Qa7 Ra8 29. Qb7 Rab8 30. Qa7 {½-½ (30) Andreikin,D (2729)-Fedoseev,V (2701) Chess.com INT 2022}) 19. Qa3 {[%emt 0:01:58]} c5 {[%emt 0:01:00]} 20. Rfe1 {[%emt 0:02:27]} Be6 {[%emt 0:00:50]} 21. Ba1 {[%emt 0:00:28]} Rfd8 {[%emt 0:00:59]} 22. Qg3 {[%emt 0:03:08]} ({Of course not} 22. Qb2 f6 23. a3 Qd3 $17) 22... f6 {[%emt 0:01:44]} 23. h4 {[%emt 0:00:41]} Qd3 {[%emt 0:01:18]} 24. Qf4 {[%emt 0:00:56]} Qd2 {[%emt 0:00:16]} 25. Qc7 {[%emt 0:01:18][%csl LRc5,LRe7]} Qd6 {[%emt 0:00:25]} ({Don't play} 25... Qxa2 26. Qxe7 Rf8 27. Qxc5 $16) 26. Qxd6 {[%emt 0:01:26]} Rxd6 {[%emt 0:00:05]} 27. e5 {[%emt 0:00:01]} fxe5 {[%emt 0:01:02]} 28. Bxe5 {[%emt 0:00:52]} Ra6 {[%emt 0:01:11]} 29. Rb7 {[%emt 0:00:19]} Re8 {[%emt 0:01:02]} 30. Rc1 {[%emt 0:01:39]} Bd5 {[%emt 0:01:02]} 31. Rd7 {[%emt 0:00:10]} Be6 {[%emt 0:00:07]} 32. Rb7 {[%emt 0:00:10]} Bd5 {[%emt 0:00:01]} 33. Rc7 {[%emt 0:00:43]} Bxa2 {[%emt 0:00:53]} 34. R1xc5 {[%emt 0:00:07]} Ra4 {[%emt 0:00:13]} 35. Bg3 {[%emt 0:00:44]} Kf7 {[%emt 0:01:29]} 36. Re5 {[%emt 0:00:16]} Be6 {[%emt 0:00:11]} 37. Rc6 {[%emt 0:00:36] The position is equal.} Bd7 {[%emt 0:00:37]} 38. Rc7 {[%emt 0:00:03]} Be6 {[%emt 0:00:01]} 39. Rc6 {[%emt 0:00:02]} Bd7 {[%emt 0:00:01]} 40. Rc7 {[%emt 0:00:01]} Be6 {[%emt 0:00:00] Weighted Error Value: White=0.05 (flawless) /Black=0.05 (flawless)} 1/2-1/2

[Event "MCCT Oslo Esports Cup 2022"]
[Site "Oslo"]
[Date "2022.04.20"]
[Round "2.3"]
[White "Praggnanandhaa R"]
[Black "Mamedyarov, Shakhriyar"]
[Result "1-0"]
[ECO "D11"]
[WhiteElo "2624"]
[BlackElo "2771"]
[Annotator "TA"]
[PlyCount "61"]
[EventDate "2022.04.14"]
[EventType "tourn"]
[EventCountry "NOR"]
[SourceTitle "playchess.com"]
[Source "ChessBase"]
[SourceQuality "1"]
[TimeControl "1500+10"]

{[%evp 11,61,6,12,0,0,0,0,0,0,0,0,0,8,0,29,31,23,19,22,25,25,13,36,33,45,47,42,42,72,68,72,45,50,43,52,44,42,45,80,87,111,75,159,112,214,211,486,492,664,648,629,606]} 1. d4 {[%emt 0:10:00]} d5 {[%emt 0:10:00]} 2. c4 {[%emt 0:00:03]} c6 {[%emt 0:00:01]} 3. Nf3 {[%emt 0:00:01]} Nf6 {[%emt 0:00:00]} 4. e3 {[%emt 0:00:00]} Bg4 {[%emt 0:00:01]} 5. h3 {[%emt 0:00:03]} Bh5 {[%emt 0:00:01]} 6. Nc3 {[%emt 0:00:01]} e6 {[%emt 0:00:02]} 7. Qb3 {[%emt 0:00:01] D11: Slav Defence: 3 Nf3 sidelines and 3...Nf6 4 e3 Bg4.} Qb6 {[%emt 0:00:01]} 8. g4 {[%emt 0:00:01] 8.Nh4 gains popularity.} Bg6 {[%emt 0:00:01]} 9. Ne5 {[%emt 0:00:01] The position is equal.} Nbd7 {[%emt 0:00:01]} 10. Nxg6 {[%emt 0:00:02]} hxg6 {[%emt 0:00:00]} 11. Bg2 {[%emt 0:00:30]} g5 {[%emt 0:00:03]} 12. Qxb6 $5 {[%emt 0:02:39][%mdl 4] [#] A promising side line.} Nxb6 $146 {[%emt 0:05:49]} ({Predecessor:} 12... axb6 13. cxd5 Nxd5 14. Nxd5 exd5 15. e4 dxe4 16. Bxg5 Be7 17. Bf4 Ra4 18. Be3 f5 19. gxf5 {½-½ (24) Zesiger,H (2316)-Gunkel,W (2366) ICCF email 2018}) 13. c5 {[%emt 0:00:12]} Nbd7 {[%emt 0:00:02]} 14. b4 {[%emt 0:00:02][%cal Bb2b4,Bb4b5][%mdl 32]} e5 {[%emt 0:00:48]} 15. O-O {[%emt 0:02:59]} Be7 {[%emt 0:00:41]} 16. b5 {[%emt 0:00:47]} O-O {[%emt 0:00:54]} 17. Rb1 {[%emt 0:00:10]} Bd8 {[%emt 0:02:06]} 18. Ne2 {[%emt 0:02:10]} Re8 {[%emt 0:00:24]} 19. Ba3 {[%emt 0:00:29]} exd4 {[%emt 0:03:54]} 20. Nxd4 {[%emt 0:00:03]} Ne5 {[%emt 0:00:00]} 21. bxc6 {[%emt 0:01:12]} bxc6 {[%emt 0:00:00]} 22. Rb7 {[%emt 0:00:01]} Be7 {[%emt 0:01:07]} 23. Rc1 {[%emt 0:00:51]} Bf8 {[%emt 0:00:06]} 24. Bf1 {[%emt 0:02:36]} Ne4 {[%emt 0:00:18]} 25. Rc2 {[%emt 0:00:42]} g6 {[%emt 0:01:32]} 26. Kg2 {[%emt 0:00:28]} Nf6 {[%emt 0:01:06] [#]} (26... a5 $142) 27. Ba6 {[%emt 0:00:23] &Bianco is more active.} ({Better is} 27. Bb2 $1) 27... Rab8 {[%emt 0:00:19]} (27... Rac8 $16 {is a better defense.} 28. Bb4 (28. Rxa7 $2 Ra8 $19) 28... Nfd7) 28. Rc7 $18 {[%emt 0:00:55]} (28. Rxa7 $2 Ra8 29. Nxc6 (29. Rxa8 $2 Rxa8 30. Nxc6 Nxc6 $19) 29... Nxc6 30. Rxa8 Rxa8 $19) 28... Rb1 $2 {[%emt 0:00:07]} (28... Red8 29. Rxc6 (29. Rxa7 $2 Ra8 $19) (29. Nxc6 Ne8 $16) 29... Ne8) 29. Nxc6 {[%emt 0:00:08] White is clearly winning.} Nc4 {[%emt 0:00:06]} 30. Rxc4 {[%emt 0:00:22]} dxc4 {[%emt 0:00:17]} 31. Bxc4 {[%emt 0:00:01] Weighted Error Value: White=0.05 (flawless) /Black=0.35} 1-0

[Event "MCCT Oslo Esports Cup 2022"]
[Site "Oslo"]
[Date "2022.04.20"]
[Round "2.3"]
[White "Hansen, Eric"]
[Black "Van Foreest, Jorden"]
[Result "1-0"]
[ECO "C48"]
[WhiteElo "2606"]
[BlackElo "2714"]
[Annotator "TA"]
[PlyCount "77"]
[EventDate "2022.04.14"]
[EventType "tourn"]
[EventCountry "NOR"]
[SourceTitle "playchess.com"]
[Source "ChessBase"]
[SourceQuality "1"]
[TimeControl "1500+10"]

{[%evp 10,77,30,4,6,0,8,0,0,0,30,30,38,-20,-28,-15,-28,-21,-15,-48,-66,-76,-87,-85,0,0,0,0,-26,-31,-12,-104,-16,-22,-24,-138,-167,-135,0,0,362,371,376,367,372,370,387,391,405,299,387,370,402,400,400,405,434,428,483,463,485,479,547,547,547,540,625,618,618,583]} 1. e4 {[%emt 0:10:00]} e5 {[%emt 0:10:00]} 2. Nf3 {[%emt 0:00:01]} Nc6 {[%emt 0:00:03]} 3. Bb5 {[%emt 0:00:01]} Nf6 {[%emt 0:00:02]} 4. d3 {[%emt 0:00:01]} Bc5 {[%emt 0:00:05]} 5. Bxc6 {[%emt 0:00:11]} dxc6 {[%emt 0:00:03]} 6. Nc3 {[%emt 0:00:02]} Qe7 {[%emt 0:00:20] C48: Four Knights: 4 Bb5, replies other than 4...Bb4.} 7. h3 {[%emt 0:00:09]} h6 {[%emt 0:00:20]} 8. Be3 {[%emt 0:00:11] 8.a3 is the recent fashion.} Bd6 {[%emt 0:00:50] The position is equal.} 9. O-O {[%emt 0:01:25]} c5 {[%emt 0:00:50]} 10. Nd2 {[%emt 0:00:01]} Be6 {[%emt 0:00:11] [#]} 11. f4 $146 {[%emt 0:01:08]} (11. Nc4 $14) ({Predecessor:} 11. Nc4 Bxc4 12. dxc4 Qe6 13. b3 O-O 14. Qe2 Rfd8 15. Rfd1 c6 16. Rd3 b6 17. Rad1 Bc7 {½-½ (17) Khairullin,I (2538)-Pashikian,A (2442) Belfort 2005}) 11... exf4 $1 $11 {[%emt 0:00:05]} 12. Bxf4 {[%emt 0:00:00]} Bxf4 {[%emt 0:00:03]} 13. Rxf4 {[%emt 0:00:00]} O-O-O {[%emt 0:00:11]} 14. b3 {[%emt 0:00:31]} g5 {[%emt 0:00:49]} 15. Rf2 {[%emt 0:00:40]} g4 {[%emt 0:00:15] Prevents Qf3.} 16. Qf1 {[%emt 0:00:09]} Nh5 {[%emt 0:00:06]} ({Black should play} 16... Nd7 $17) 17. hxg4 $1 {[%emt 0:00:12]} Ng3 {[%emt 0:00:09]} 18. Qe1 {[%emt 0:00:04]} h5 {[%emt 0:01:36][%cal Bh6h5,Bh5h4,Bh4h3][%mdl 32]} (18... Qh4 $2 19. Rf3 $18) 19. Rf3 {[%emt 0:00:05]} h4 {[%emt 0:00:46]} 20. Qf2 {[%emt 0:03:24]} (20. Nd5 $1 $11 {keeps the balance.} Bxd5 21. exd5) 20... Qg5 {[%emt 0:00:09]} (20... Bxg4 $17 21. Rxf7 Qe5) 21. Re1 {[%emt 0:00:32]} Qxg4 {[%emt 0:01:33]} 22. Qxc5 {[%emt 0:00:16]} (22. Nf1 $11 {remains equal.}) 22... h3 $1 $17 {[%emt 0:00:24]} 23. Nb5 {[%emt 0:00:15][%csl Gb5][%cal Rc5c7]} c6 {[%emt 0:02:29]} (23... h2+ $17 24. Kf2 h1=N+ 25. Ke3 Rd7 26. Qxa7 Qg5+ 27. Rf4 Rxd3+ 28. cxd3 Rh4) 24. Nxa7+ $40 {[%emt 0:00:19][%mdl 128] Black needs to defend precisely. Pair of Knights!} Kb8 $2 {[%emt 0:00:36][%mdl 8192] [#] White stays focused until the end.} (24... Kd7 $1 $11 {and Black is okay.} 25. Qd4+ Ke7 26. Qf6+ Kd7 27. Qd4+ Ke7 28. Qf6+ Kd7 29. Qd4+) 25. Nxc6+ $1 $18 {[%emt 0:01:29]} bxc6 {[%emt 0:00:00] [#]} 26. Qe5+ $1 {[%emt 0:00:02]} Kb7 {[%emt 0:00:16]} 27. Rxg3 {[%emt 0:00:01] Really sharp!} Qh4 {[%emt 0:00:48]} 28. Nf3 {[%emt 0:00:06]} Qh6 {[%emt 0:00:16]} 29. Qg7 {[%emt 0:01:13] Inhibits Rdg8.} Qxg7 {[%emt 0:00:33]} 30. Rxg7 {[%emt 0:00:03]} Rdg8 {[%emt 0:00:00] [#]} 31. Rxg8 {[%emt 0:00:16]} Rxg8 {[%emt 0:00:00][%mdl 4096] Endgame KRB-KRN} 32. Re2 {[%emt 0:00:14]} Bg4 {[%emt 0:00:01] Strongly threatening ...Bxf3.} 33. Kh2 {[%emt 0:00:32] White is clearly winning.} Rh8 {[%emt 0:00:09]} 34. Rf2 {[%emt 0:00:12]} hxg2+ {[%emt 0:00:08]} 35. Kxg2 {[%emt 0:00:00]} Kb6 {[%emt 0:00:07]} 36. Ne5 {[%emt 0:00:07][%csl LRf7,LRg4]} Be6 {[%emt 0:00:00]} 37. Nxf7 {[%emt 0:01:19]} Ra8 {[%emt 0:00:13]} 38. Ne5 {[%emt 0:00:45]} Rxa2 {[%emt 0:02:52]} 39. d4 {[%emt 0:00:02] Weighted Error Value: White=0.22 (precise) /Black=0.37} 1-0

[Event "MCCT Oslo Esports Cup 2022"]
[Site "Oslo"]
[Date "2022.04.20"]
[Round "2.4"]
[White "Giri, Anish"]
[Black "Duda, Jan-Krzysztof"]
[Result "1/2-1/2"]
[ECO "D85"]
[WhiteElo "2773"]
[BlackElo "2750"]
[Annotator "TA"]
[PlyCount "68"]
[EventDate "2022.04.14"]
[EventType "tourn"]
[EventCountry "NOR"]
[SourceTitle "playchess.com"]
[Source "ChessBase"]
[SourceQuality "1"]
[TimeControl "1500+10"]

{[%evp 23,68,20,22,20,14,21,17,0,0,-54,-37,-37,-35,-38,0,0,0,0,8,0,0,0,14,2,4,4,20,0,0,0,0,0,0,0,0,0,0,0,0,0,0,0,0,0,0,0,0]} 1. d4 {[%emt 0:10:00]} Nf6 {[%emt 0:10:00]} 2. c4 {[%emt 0:00:02]} g6 {[%emt 0:00:01]} 3. Nc3 {[%emt 0:00:01]} d5 {[%emt 0:00:01]} 4. cxd5 {[%emt 0:00:00]} Nxd5 {[%emt 0:00:00]} 5. e4 {[%emt 0:00:01]} Nxc3 {[%emt 0:00:01]} 6. bxc3 {[%emt 0:00:01]} Bg7 {[%emt 0:00:01]} 7. Be3 {[%emt 0:00:02]} c5 {[%emt 0:00:01]} 8. Rc1 {[%emt 0:00:03]} O-O {[%emt 0:00:11]} 9. Nf3 {[%emt 0:00:04]} Qa5 {[%emt 0:00:11]} 10. Qd2 {[%emt 0:00:01]} cxd4 {[%emt 0:00:05]} 11. cxd4 {[%emt 0:00:02]} Qxd2+ {[%emt 0:00:00]} 12. Nxd2 {[%emt 0:00:32]} e6 {[%emt 0:00:01]} 13. Bb5 {[%emt 0:01:17][%cal Bf1b5,Bb5a4,Ba4b3][%mdl 32] has lost popularity (13.Nb3). D85: Exchange Grünfeld: Unusual White 7th moves and lines with 7 Nf3.} a6 {[%emt 0:00:03]} 14. Ba4 {[%emt 0:00:09]} b5 {[%emt 0:00:02] Inhibits Nc4.} 15. Bb3 {[%emt 0:00:13]} a5 {[%emt 0:00:02]} 16. a4 {[%emt 0:00:08]} ({White should play} 16. O-O $11) 16... Bd7 $15 {[%emt 0:01:13]} 17. axb5 {[%emt 0:00:08]} Bxb5 {[%emt 0:00:00]} 18. Bc4 $1 {[%emt 0:00:14] [#]} Bxc4 $146 {[%emt 0:01:08]} ({Predecessor:} 18... Rc8 19. Ke2 Bd7 20. Nb3 a4 21. Nc5 Be8 22. d5 Nd7 23. dxe6 Nxc5 24. Bxc5 Bb2 {0-1 (30) Brunello,S (2552)-Robson,R (2628) Las Vegas 2014}) 19. Rxc4 {[%emt 0:00:16] The position is equal.} ({Don't play} 19. Nxc4 a4 $15) 19... Nd7 {[%emt 0:03:03]} 20. Ke2 {[%emt 0:00:06]} Rfc8 {[%emt 0:00:11]} 21. Ra4 {[%emt 0:03:47]} Nb6 {[%emt 0:00:31]} 22. Ra2 {[%emt 0:00:01]} Nc4 {[%emt 0:00:47]} 23. Rha1 {[%emt 0:00:23]} Nxd2 {[%emt 0:01:13]} 24. Kxd2 {[%emt 0:00:05]} Rd8 {[%emt 0:00:04]} (24... Bf8 {seems wilder.} 25. Kd3 Bb4 26. Bd2 Bxd2 27. Rxd2 Rcb8) 25. Rxa5 {[%emt 0:00:56]} (25. Ra4 {seems wilder.} f5 26. Kd3 Rab8 27. R1a2) 25... Rxa5 {[%emt 0:00:05]} 26. Rxa5 {[%emt 0:00:00]} Bxd4 {[%emt 0:00:02]} 27. Bxd4 {[%emt 0:00:00]} Rxd4+ $11 {[%emt 0:00:01][%mdl 4096] Endgame KR-KR} 28. Ke3 {[%emt 0:00:01]} Rd8 {[%emt 0:00:00]} 29. h4 {[%emt 0:00:04]} h5 {[%emt 0:00:04]} 30. g3 {[%emt 0:00:00]} Kg7 {[%emt 0:00:01]} 31. Rb5 {[%emt 0:00:04]} Rd7 {[%emt 0:00:02]} 32. Ra5 {[%emt 0:00:01]} Rd8 {[%emt 0:00:00]} 33. Rb5 {[%emt 0:00:00]} Rd7 {[%emt 0:00:00]} 34. Ra5 {[%emt 0:00:01]} Rd8 {[%emt 0:00:01] Weighted Error Value: White=0.12 (very precise) /Black=0.05 (flawless)} 1/2-1/2

[Event "MCCT Oslo Esports Cup 2022"]
[Site "Oslo"]
[Date "2022.04.20"]
[Round "2.4"]
[White "Van Foreest, Jorden"]
[Black "Hansen, Eric"]
[Result "1/2-1/2"]
[ECO "B22"]
[WhiteElo "2714"]
[BlackElo "2606"]
[Annotator "TA"]
[PlyCount "93"]
[EventDate "2022.04.14"]
[EventType "tourn"]
[EventCountry "NOR"]
[SourceTitle "playchess.com"]
[Source "ChessBase"]
[SourceQuality "1"]
[TimeControl "1500+10"]

{[%evp 15,93,1,8,8,4,0,0,0,8,0,10,25,26,-16,-16,-15,-16,-24,-20,-19,-33,-21,-33,-34,-20,-27,-23,-46,-37,-56,-14,-21,-24,-38,-34,-41,-22,-20,-40,-76,-6,-31,0,0,0,0,0,-59,0,0,0,0,0,-74,-8,-8,0,0,0,0,0,0,0,0,0,0,340,331,312,300,302,66,338,292,289,0,314,0,258,0]} 1. e4 {[%emt 0:10:00]} c5 {[%emt 0:10:00]} 2. c3 {[%emt 0:00:05]} Nf6 {[%emt 0:00:18]} 3. e5 {[%emt 0:00:03]} Nd5 {[%emt 0:00:01]} 4. Nf3 {[%emt 0:00:04]} e6 {[%emt 0:00:08]} 5. d4 {[%emt 0:00:08]} cxd4 {[%emt 0:00:02]} 6. cxd4 {[%emt 0:00:02]} b6 {[%emt 0:00:02]} 7. Nc3 {[%emt 0:00:50]} Nxc3 {[%emt 0:00:03]} 8. bxc3 {[%emt 0:00:01]} Qc7 {[%emt 0:00:14]} 9. Bb5 {[%emt 0:00:15] B22: Sicilian: 2 c3.} Bb7 {[%emt 0:00:22]} 10. O-O {[%emt 0:00:32]} Be7 {[%emt 0:00:34] [#]} 11. Bf4 $146 {[%emt 0:01:37] The position is equal.} ({Predecessor:} 11. Qd3 Nc6 12. Re1 Na5 13. Bf4 a6 14. Ba4 Rc8 15. Qd1 h6 16. Rc1 g5 17. Be3 Nc4 18. Bb3 Qc6 19. Bxc4 {½-½ (19) Giri,A (2769)-Smirin,I (2607) Moscow 2019}) 11... O-O {[%emt 0:00:25]} 12. Rc1 {[%emt 0:00:01]} d6 $1 {[%emt 0:00:20]} 13. Re1 {[%emt 0:00:20][%cal Od4d5]} Nd7 {[%emt 0:00:22]} 14. Qe2 {[%emt 0:01:55]} dxe5 {[%emt 0:01:57]} (14... Rac8 {keeps more tension.} 15. c4 dxe5 16. Nxe5 Nxe5 17. Bxe5 Bd6) 15. Nxe5 {[%emt 0:00:10]} Nxe5 {[%emt 0:00:01]} 16. Bxe5 {[%emt 0:00:01]} Bd6 {[%emt 0:00:05]} 17. Bxd6 {[%emt 0:00:39]} Qxd6 {[%emt 0:00:02]} 18. Ba6 {[%emt 0:00:00]} Bc6 {[%emt 0:00:11]} 19. Qe5 {[%emt 0:02:20]} Rfd8 {[%emt 0:01:27]} 20. Qxd6 {[%emt 0:00:10]} Rxd6 {[%emt 0:00:00]} 21. Bc4 {[%emt 0:00:02]} Rc8 {[%emt 0:00:40]} 22. Bb3 {[%emt 0:00:05]} g5 {[%emt 0:00:07]} 23. Re5 {[%emt 0:00:10]} h6 {[%emt 0:00:02]} 24. f3 {[%emt 0:00:21][%cal Oh2h4]} Bd7 {[%emt 0:00:19][%cal Od6d4]} 25. Ree1 {[%emt 0:00:10]} b5 {[%emt 0:00:44]} 26. Kf2 {[%emt 0:00:16]} a5 {[%emt 0:01:10]} 27. Ke3 {[%emt 0:00:08]} Kg7 {[%emt 0:05:28]} (27... a4 $17 28. Bd1 e5 29. dxe5 Rdc6) 28. a3 {[%emt 0:00:05]} f5 {[%emt 0:01:13][%cal Oe6e5]} 29. Kd3 {[%emt 0:00:18]} Kf6 {[%emt 0:00:03]} 30. Rc2 {[%emt 0:02:01]} f4 {[%emt 0:00:42]} 31. Rb2 {[%emt 0:01:34]} (31. Re5 $1 $11) 31... b4 {[%emt 0:01:56]} (31... Rdc6 $15 32. Rc2 a4) 32. axb4 $11 {[%emt 0:00:17]} axb4 {[%emt 0:00:01]} 33. c4 {[%emt 0:00:38]} ({Don't blunder} 33. cxb4 $2 Bb5+ 34. Bc4 Rxc4 $19) 33... Be8 {[%emt 0:00:09]} 34. Rd2 {[%emt 0:00:24] [#]} ({Don't play} 34. c5 Bb5+ 35. Kc2 Rxd4 36. Rxe6+ Kf5 $17) (34. d5 $11 {remains equal.}) 34... Bg6+ {[%emt 0:00:15]} (34... Rxd4+ $1 $17 35. Kxd4 Rd8+ 36. Kc5 Rxd2) 35. Ke2 {[%emt 0:00:01]} Bf5 {[%emt 0:00:07]} 36. g4 {[%emt 0:00:37] Black must now prevent c5.} fxg3 {[%emt 0:00:08]} 37. hxg3 {[%emt 0:00:00][%cal Bh2g3,Bg3g4][%mdl 32]} h5 {[%emt 0:00:01] Inhibits g4.} 38. c5 {[%emt 0:00:42]} Ra6 {[%emt 0:00:08]} 39. Kf2 {[%emt 0:00:00]} Ra3 {[%emt 0:00:05]} 40. Re3 {[%emt 0:00:05]} h4 $2 {[%emt 0:00:11][%mdl 8192]} (40... Rc7 $11 {and Black has nothing to worry.}) 41. g4 $18 {[%emt 0:00:02]} Bg6 {[%emt 0:00:12]} 42. Rxe6+ {[%emt 0:00:06]} Kg7 {[%emt 0:00:01]} 43. Re7+ $2 {[%emt 0:00:15]} ({Better is} 43. Rb2 $18) 43... Kh6 $2 {[%emt 0:00:14][%mdl 8192]} (43... Kf8 $1 $14 44. Re3 Re8) 44. Re3 {[%emt 0:00:27]} Kg7 {[%emt 0:00:16]} 45. Re7+ {[%emt 0:00:03]} Kh6 {[%emt 0:00:53]} (45... Kf8 $5 46. Re3 Re8 $16) 46. Re3 {[%emt 0:00:01]} Kg7 $1 {[%emt 0:00:37]} 47. Re7+ $2 {[%emt 0:00:03] Weighted Error Value: White=0.41/Black=0.38} (47. Rb2 $18) 1/2-1/2

[Event "MCCT Oslo Esports Cup 2022"]
[Site "Oslo"]
[Date "2022.04.20"]
[Round "2.4"]
[White "Le, Quang Liem"]
[Black "Carlsen, Magnus"]
[Result "1-0"]
[ECO "A43"]
[WhiteElo "2709"]
[BlackElo "2864"]
[Annotator "TA"]
[PlyCount "83"]
[EventDate "2022.04.14"]
[EventType "tourn"]
[EventCountry "NOR"]
[SourceTitle "playchess.com"]
[Source "ChessBase"]
[SourceQuality "1"]
[TimeControl "1500+10"]

{[%evp 12,83,53,45,39,36,61,48,50,52,42,38,54,36,32,0,0,25,46,0,0,-57,0,0,0,0,0,-10,-21,-13,-30,-43,294,203,229,213,195,181,211,198,297,40,67,67,66,49,106,68,58,9,10,9,36,0,0,0,0,0,0,0,0,0,24,0,512,500,504,481,923,908,2060,2104,29979,29979]} 1. d4 {[%emt 0:10:00]} e6 {[%emt 0:10:00]} 2. c4 {[%emt 0:00:12]} c5 {[%emt 0:00:09]} 3. d5 {[%emt 0:00:14]} exd5 {[%emt 0:00:02]} 4. cxd5 {[%emt 0:00:00]} d6 {[%emt 0:00:01]} 5. e4 {[%emt 0:00:07]} g6 {[%emt 0:00:04]} 6. Nc3 {[%emt 0:00:28]} Bg7 {[%emt 0:00:04]} 7. Bd3 {[%emt 0:01:10]} a6 {[%emt 0:01:09] A43: Schmid Benoni.} 8. a4 {[%emt 0:00:05]} Nf6 {[%emt 0:00:03]} 9. h3 $1 {[%emt 0:00:21] 9.h3 scores better than 9.Nge2.} Nbd7 {[%emt 0:01:04] White is slightly better.} 10. Nf3 {[%emt 0:00:04]} Nh5 {[%emt 0:00:10]} 11. g4 {[%emt 0:01:32]} Nhf6 {[%emt 0:00:03]} 12. Bf4 {[%emt 0:00:01]} Qe7 {[%emt 0:00:37]} 13. O-O {[%emt 0:00:19]} h5 {[%emt 0:00:27]} 14. g5 {[%emt 0:06:27]} Nh7 {[%emt 0:00:04] [#]} 15. Kh2 $146 {[%emt 0:00:21]} (15. h4 $1 $14) ({Predecessor:} 15. h4 O-O 16. Bg3 f6 17. e5 Nxe5 18. Nxe5 fxe5 19. Bxg6 Bg4 20. f3 Bh3 21. Ne4 Bxf1 22. Qxf1 {1-0 (40) Enchev,I (2491)-Vernacki,S (2348) Zagreb 2018}) 15... O-O $11 {[%emt 0:01:32]} 16. Rg1 {[%emt 0:00:19]} (16. Qd2 $11) 16... f6 {[%emt 0:00:26]} (16... Ne5 $15) 17. Nh4 $36 {[%emt 0:01:46][%mdl 2048] White fights for an advantage.} Ne5 {[%emt 0:03:36]} 18. Bxe5 {[%emt 0:00:08]} fxe5 {[%emt 0:01:58]} (18... Qxe5+ 19. Kh1 Rf7 20. Nxg6 $14) 19. Nxg6 {[%emt 0:00:10]} Rxf2+ {[%emt 0:00:02]} 20. Kg3 {[%emt 0:00:04]} Qf7 {[%emt 0:00:01]} 21. Qxh5 {[%emt 0:00:10] [#]} Rf4 {[%emt 0:00:16][%mdl 8192]} 22. Be2 {[%emt 0:01:11] And now Raf1 would win.} Nf8 {[%emt 0:00:38]} (22... Rf2 $2 {[#]} 23. Ne7+ $1 {[%mdl 512]} Qxe7 24. Kxf2 $18) 23. Nxf4 {[%emt 0:00:09] Chess con chili.} exf4+ {[%emt 0:00:01]} 24. Kh2 {[%emt 0:00:09] g6 is the strong threat.} Ng6 {[%emt 0:00:02]} 25. Raf1 {[%emt 0:00:18]} b5 {[%emt 0:00:16]} (25... Kf8 $142 26. Bg4 Bxg4 27. Qxg4 (27. Rxg4 Ke7 $16) 27... Ke7) 26. Bg4 $2 {[%emt 0:00:17]} ({Better is} 26. axb5 $18 axb5 27. Nxb5) 26... Bxg4 $1 $14 {[%emt 0:00:17]} 27. Qxg4 {[%emt 0:00:00]} (27. Rxg4 $5 {[%cal Ra4b5]} b4 28. Nd1 $16) 27... b4 {[%emt 0:00:02]} 28. Nd1 {[%emt 0:00:18][%cal Od1e3] Threatens to win with Ne3!} Re8 {[%emt 0:00:03]} (28... Bd4 $14) 29. Qf5 {[%emt 0:00:52][%cal Od1e3]} Bd4 {[%emt 0:00:02] Inhibits Ne3.} 30. Rg4 {[%emt 0:00:22]} (30. Rg2 $14) 30... c4 $1 $11 {[%emt 0:00:15]} 31. h4 {[%emt 0:00:33] aiming for h5.} Qh7 {[%emt 0:00:03]} 32. Kh3 {[%emt 0:00:15]} (32. e5 $5 Bxe5 33. Kh3 $14) 32... Be5 $1 {[%emt 0:00:27]} 33. Rf2 {[%emt 0:00:34]} Rf8 {[%emt 0:00:03]} 34. Qe6+ {[%emt 0:00:07]} Kg7 {[%emt 0:00:04]} 35. Rc2 {[%emt 0:00:25]} c3 {[%emt 0:01:16]} 36. bxc3 {[%emt 0:00:00]} b3 {[%emt 0:00:02]} 37. Rb2 {[%emt 0:00:04][%cal Bc2b2,Bb2b3,Bb3b8][%mdl 32]} (37. Rf2 $5 {[%cal Rd1b2]} Qh8 38. Rf1 $14 (38. Rb2 Re8 $11)) 37... Kh8 $2 {[%emt 0:00:04][%mdl 8192]} (37... Rf7 $11 {and Black is okay.}) 38. Rxb3 $18 {[%emt 0:00:26]} f3 {[%emt 0:00:02]} 39. Nf2 {[%emt 0:00:41]} ({Stronger than} 39. Rb7 Qxb7 40. Qxg6 f2 41. Qh6+ Kg8 42. Qe6+ Kh8 43. Qh6+ Kg8 44. Qe6+ Kh8 45. Qh6+ $11) 39... Bf4 {[%emt 0:00:48]} (39... Nf4+ $142 40. Rxf4 Bxf4) 40. c4 {[%emt 0:00:28]} Bxg5 {[%emt 0:00:16]} 41. Qxd6 {[%emt 0:00:01]} Rg8 {[%emt 0:01:07]} 42. Rb8 {[%emt 0:00:03] Weighted Error Value: White=0.28 (precise) /Black=0.59} 1-0